bitfinex-derivatives/quotes_SOLF0:USTF0_20250911
["timestamp","ask_amount","ask_price","bid_price","bid_amount"]
[1757549488821,5.78,224.38,224.31,7.38]
[1757549489018,6.83407526,224.37,224.31,7.38]
[1757549489319,5.78,224.38,224.31,7.38]
[1757549489620,6.83251959,224.37,224.31,7.38]
[1757549489821,5.78,224.38,224.31,7.38]
[1757549490012,6.83251959,224.37,224.31,7.38]
[1757549490212,5.78,224.38,224.31,7.38]
[1757549490413,6.83229001,224.37,224.31,7.38]
[1757549490615,5.78,224.38,224.31,7.38]
[1757549490915,6.83229003,224.37,224.31,7.38]
[1757549491115,5.78,224.38,224.31,7.38]
[1757549491316,6.83218379,224.37,224.31,7.38]
[1757549491516,5.78,224.38,224.31,7.38]
[1757549491816,6.83210635,224.37,224.31,7.38]
[1757549492117,5.78,224.38,224.31,7.38]
[1757549492317,6.83202347,224.37,224.31,7.38]
[1757549492609,5.78,224.38,224.31,7.38]
[1757549492919,6.83196754,224.37,224.31,7.38]
[1757549493217,5.78,224.38,224.31,7.38]
[1757549493418,6.83187288,224.37,224.31,7.38]
[1757549493616,5.78,224.38,224.31,7.38]
[1757549493919,6.83187288,224.37,224.31,7.38]
[1757549494218,5.78,224.38,224.31,7.38]
[1757549494412,6.83182187,224.37,224.31,7.38]
[1757549494610,5.78,224.38,224.31,7.38]
[1757549494809,6.83182224,224.37,224.31,7.38]
[1757549495012,5.78,224.38,224.31,7.38]
[1757549495209,6.83834166,224.37,224.31,7.38]
[1757549495418,5.78,224.38,224.31,7.38]
[1757549495618,3.14987007,224.37,224.31,7.38]
[1757549495818,5.78,224.38,224.31,7.38]
[1757549498318,3.15014211,224.37,224.31,7.38]
[1757549498518,5.78,224.38,224.31,7.38]
[1757549498817,6.83878596,224.37,224.31,7.38]
[1757549499017,5.78,224.38,224.31,7.38]
[1757549499220,6.83882139,224.37,224.31,7.38]
[1757549499418,5.78,224.38,224.31,7.38]
[1757549499615,3.15021611,224.37,224.31,7.38]
[1757549499914,5.78,224.38,224.31,7.38]
[1757549500615,144.29339277,224.41,224.31,7.38]
[1757549500815,6.8383215,224.4,224.31,7.38]
[1757549501121,144.29339277,224.41,224.31,7.38]
[1757549501322,6.83852061,224.4,224.31,7.38]
[1757549501521,144.29339277,224.41,224.33,7.38]
[1757549501723,6.83853247,224.4,224.33,7.38]
[1757549501920,144.29339277,224.41,224.33,7.38]
[1757549502120,6.83853247,224.4,224.33,7.38]
[1757549502322,144.29339277,224.41,224.33,7.38]
[1757549502621,6.83874723,224.4,224.33,7.38]
[1757549502819,144.29339277,224.41,224.33,7.38]
[1757549503113,6.83874723,224.4,224.33,7.38]
[1757549503319,144.29339277,224.41,224.33,7.38]
[1757549503518,6.83896753,224.4,224.33,7.38]
[1757549503721,144.29339277,224.41,224.33,7.38]
[1757549503916,6.83896753,224.4,224.33,7.38]
[1757549504116,144.29339277,224.41,224.33,7.38]
[1757549504325,6.83908915,224.4,224.33,7.38]
[1757549504525,144.29339277,224.41,224.33,7.38]
[1757549504827,6.8391932,224.4,224.33,7.38]
[1757549505025,144.29339277,224.41,224.33,7.38]
[1757549505225,6.8391932,224.4,224.33,7.38]
[1757549505526,144.29339277,224.41,224.33,7.38]
[1757549505717,6.83935048,224.4,224.33,7.38]
[1757549505922,144.29339277,224.41,224.33,7.38]
[1757549506121,6.83935048,224.4,224.33,7.38]
[1757549506325,144.29339277,224.41,224.33,7.38]
[1757549506530,6.83957731,224.4,224.33,7.38]
[1757549506827,144.29339277,224.41,224.33,7.38]
[1757549507020,6.83957731,224.4,224.33,7.38]
[1757549507224,144.29339277,224.41,224.33,7.38]
[1757549507425,6.83980374,224.4,224.33,7.38]
[1757549507623,144.29339277,224.41,224.33,7.38]
[1757549507824,6.83980374,224.4,224.33,7.38]
[1757549508124,144.29339277,224.41,224.33,7.38]
[1757549508326,6.840039,224.4,224.33,7.38]
[1757549508523,144.29339277,224.41,224.33,7.38]
[1757549514426,144.29339277,224.41,224.34,4.0107]
[1757549514630,144.29339277,224.41,224.35,7.38]
[1757549516737,138.51339277,224.41,224.35,7.38]
[1757549516935,5.78,224.4,224.33,7.4]
[1757549517731,138.51339277,224.41,224.33,7.4]
[1757549517938,10.77266287,224.4,224.3,7.45077907]
[1757549518132,5.78,224.38,224.3,7.45077907]
[1757549518334,5.78,224.4,224.3,7.45077907]
[1757549518639,10.77442556,224.39,224.3,7.45077907]
[1757549518931,6.84035211,224.38,224.3,7.45077907]
[1757549519136,142.52289277,224.41,224.3,7.45077907]
[1757549519328,10.77445973,224.4,224.3,7.45077907]
[1757549519527,5.78,224.38,224.3,7.45077907]
[1757549520037,142.52289277,224.41,224.3,7.45077907]
[1757549520229,10.77446022,224.4,224.3,7.45077907]
[1757549520428,5.78,224.38,224.3,7.45077907]
[1757549520639,142.52289277,224.41,224.3,7.45077907]
[1757549520838,5.78,224.39,224.3,7.45077907]
[1757549521039,5.78,224.37,224.3,7.45077907]
[1757549523742,5.78,224.4,224.31,7.4]
[1757549523943,3.15102895,224.39,224.31,7.4]
[1757549524143,5.78,224.4,224.31,7.4]
[1757549524441,6.84149398,224.39,224.31,7.4]
[1757549524636,5.78,224.4,224.33,7.4]
[1757549526638,5.78,224.4,224.34,4.0107]
[1757549527346,5.78,224.4,224.34,11.4107]
[1757549527639,5.78,224.4,224.3,0.05077907]
[1757549527842,138.51339277,224.41,224.3,0.05077907]
[1757549527843,5.78,224.38,224.3,0.05077907]
[1757549528044,5.78,224.36,224.3,0.05077907]
[1757549534047,138.51339277,224.41,224.3,0.05077907]
[1757549534048,10.62840854,224.35,224.3,0.05077907]
[1757549534247,138.51339277,224.41,224.3,0.05077907]
[1757549534248,5.78,224.33,224.3,0.05077907]
[1757549534644,5.78,224.31,224.3,0.05077907]
[1757549534846,9.69990912,224.31,224.3,0.05077907]
[1757549535647,5.78,224.31,224.3,0.05077907]
[1757549536950,5.78,224.37,224.3,0.05077907]
[1757549537154,5.78,224.35,224.3,0.05077907]
[1757549537352,5.78,224.33,224.3,0.05077907]
[1757549537653,5.78,224.37,224.3,0.05077907]
[1757549537952,10.730083,224.36,224.3,0.05077907]
[1757549538150,6.94960927,224.35,224.3,0.05077907]
[1757549538342,3.7986648,224.34,224.3,0.05077907]
[1757549538547,5.78,224.37,224.3,0.05077907]
[1757549538748,6.94865797,224.36,224.3,0.05077907]
[1757549538951,12.72865797,224.35,224.3,0.05077907]
[1757549539147,3.79807682,224.34,224.3,0.05077907]
[1757549539347,3.7978929,224.33,224.3,0.05077907]
[1757549539548,5.78,224.37,224.3,0.05077907]
[1757549539748,5.78,224.35,224.3,0.05077907]
[1757549539951,5.78,224.33,224.3,0.05077907]
[1757549540152,4.0104,224.36,224.3,0.05077907]
[1757549540353,5.78,224.34,224.3,0.05077907]
[1757549540556,5.78,224.32,224.3,0.05077907]
[1757549540756,4.0104,224.36,224.3,0.05077907]
[1757549540757,5.78,224.35,224.3,0.05077907]
[1757549541050,4.0104,224.36,224.3,0.05077907]
[1757549541051,5.78,224.33,224.3,0.05077907]
[1757549541255,5.78,224.31,224.3,0.05077907]
[1757549556865,5.78,224.36,224.3,0.05077907]
[1757549557164,5.78,224.34,224.31,7.03]
[1757549557364,4.0103,224.37,224.31,7.03]
[1757549557566,3.78723848,224.36,224.31,7.03]
[1757549557762,5.78,224.34,224.31,7.03]
[1757549558064,4.0103,224.37,224.31,7.03]
[1757549558265,3.78743316,224.36,224.31,7.03]
[1757549558466,5.78,224.34,224.31,7.03]
[1757549559063,5.78,224.34,224.3,0.05077907]
[1757549559368,4.0103,224.37,224.31,7.03]
[1757549559568,6.934565,224.36,224.31,7.03]
[1757549559762,3.78812178,224.35,224.31,7.03]
[1757549559964,5.78,224.36,224.31,7.03]
[1757549560173,3.78812129,224.35,224.31,7.03]
[1757549560367,5.78,224.34,224.31,7.03]
[1757549560868,5.78,224.36,224.31,7.03]
[1757549561169,5.78,224.34,224.31,7.03]
[1757549562962,5.78,224.36,224.3,0.05077907]
[1757549563168,5.78,224.34,224.3,0.05077907]
[1757549563360,5.78,224.32,224.3,0.05077907]
[1757549563563,5.78,224.34,224.3,0.05077907]
[1757549563767,3.79091469,224.33,224.3,0.05077907]
[1757549564067,5.78,224.34,224.3,0.05077907]
[1757549564267,5.78,224.32,224.3,0.05077907]
[1757549564569,5.78,224.34,224.3,0.05077907]
[1757549564760,5.78,224.32,224.3,0.05077907]
[1757549564962,5.78,224.34,224.3,0.05077907]
[1757549565266,5.78,224.32,224.3,0.05077907]
[1757549565467,5.78,224.34,224.3,0.05077907]
[1757549565765,3.79122916,224.33,224.3,0.05077907]
[1757549565970,5.78,224.34,224.3,0.05077907]
[1757549566169,5.78,224.32,224.3,0.05077907]
[1757549566469,5.78,224.34,224.3,0.05077907]
[1757549566664,3.79140353,224.33,224.3,0.05077907]
[1757549566864,5.78,224.34,224.3,0.05077907]
[1757549567061,5.78,224.32,224.3,0.05077907]
[1757549567260,5.78,224.34,224.3,0.05077907]
[1757549567461,4.0106,224.35,224.3,0.05077907]
[1757549567462,5.78,224.32,224.3,0.05077907]
[1757549567665,5.78,224.34,224.3,0.05077907]
[1757549567968,5.78,224.32,224.3,0.05077907]
[1757549568169,4.0106,224.35,224.3,0.05077907]
[1757549568369,5.78,224.33,224.3,0.05077907]
[1757549568574,5.78,224.34,224.3,0.05077907]
[1757549568775,3.79168307,224.33,224.3,0.05077907]
[1757549568970,4.0106,224.35,224.3,0.05077907]
[1757549569170,6.94099875,224.34,224.3,0.05077907]
[1757549569470,3.79168307,224.33,224.31,7.03]
[1757549569673,5.78,224.37,224.31,7.03]
[1757549569877,6.94178992,224.36,224.3,0.05077907]
[1757549570170,6.94178992,224.35,224.3,0.05077907]
[1757549570373,3.79211594,224.34,224.3,0.05077907]
[1757549570568,5.78,224.37,224.3,0.05077907]
[1757549570773,5.78,224.35,224.3,0.05077907]
[1757549570976,3.79334158,224.34,224.3,0.05077907]
[1757549571175,4.0102,224.38,224.3,0.05077907]
[1757549571176,5.78,224.32,224.3,0.05077907]
[1757549571576,5.78,224.37,224.3,0.05077907]
[1757549571776,5.78,224.35,224.3,0.05077907]
[1757549571975,6.94708101,224.34,224.3,0.05077907]
[1757549572273,5.78,224.32,224.3,0.05077907]
[1757549572470,5.78,224.35,224.3,0.05077907]
[1757549572777,6.95100621,224.34,224.3,0.05077907]
[1757549572972,5.78,224.32,224.3,0.05077907]
[1757549573179,5.78,224.35,224.3,0.05077907]
[1757549573379,5.78,224.33,224.3,0.05077907]
[1757549573577,5.78,224.31,224.3,0.05077907]
[1757549574879,9.57810214,224.31,224.3,0.05077907]
[1757549577982,5.78,224.31,224.3,0.05077907]
[1757549593294,8.93821406,224.31,224.3,0.05077907]
[1757549595398,8.9384629,224.31,224.3,0.05077907]
[1757549595591,5.78,224.31,224.3,0.05077907]
[1757549596993,5.78,224.37,224.3,0.05077907]
[1757549597189,5.78,224.35,224.3,0.05077907]
[1757549597389,5.78,224.33,224.31,6.99]
[1757549608307,5.77,224.39,224.31,6.99]
[1757549608508,5.77,224.37,224.31,6.99]
[1757549608700,5.77,224.35,224.31,6.99]
[1757549608905,5.77,224.39,224.31,6.99]
[1757549609104,5.77,224.37,224.31,6.99]
[1757549609408,6.82286999,224.36,224.31,6.99]
[1757549609608,3.15589532,224.35,224.31,6.99]
[1757549609811,5.77,224.39,224.31,6.99]
[1757549610109,5.77,224.37,224.31,6.99]
[1757549610311,5.77,224.35,224.31,6.99]
[1757549610511,5.77,224.39,224.31,6.99]
[1757549610810,5.77,224.37,224.31,6.99]
[1757549611010,5.77,224.35,224.31,6.99]
[1757549611210,5.77,224.39,224.31,6.99]
[1757549611410,5.77,224.37,224.31,6.99]
[1757549611612,6.82166906,224.36,224.31,6.99]
[1757549611912,3.15513971,224.35,224.31,6.99]
[1757549612212,5.77,224.39,224.31,6.99]
[1757549612412,5.77,224.37,224.31,6.99]
[1757549612613,6.82151074,224.36,224.31,6.99]
[1757549612812,3.15505918,224.35,224.3,0.05077907]
[1757549613108,5.77,224.39,224.3,7.36077907]
[1757549613309,5.77,224.37,224.3,7.36077907]
[1757549613512,5.77,224.35,224.3,7.36077907]
[1757549613710,5.77,224.39,224.3,7.36077907]
[1757549613906,10.56688852,224.38,224.3,7.36077907]
[1757549614111,5.77,224.36,224.3,7.36077907]
[1757549614306,6.82187056,224.35,224.3,7.36077907]
[1757549614503,4.0097,224.4,224.3,7.36077907]
[1757549614707,5.77,224.38,224.3,7.36077907]
[1757549614910,5.77,224.36,224.3,7.36077907]
[1757549615213,5.77,224.34,224.31,7.31]
[1757549615416,5.77,224.34,224.3,0.05077907]
[1757549615607,5.77,224.34,224.31,7.31]
[1757549621212,4.0097,224.4,224.31,7.31]
[1757549621414,10.55900065,224.39,224.31,7.31]
[1757549621616,5.77,224.37,224.31,7.31]
[1757549621816,5.77,224.35,224.3,0.05077907]
[1757549622016,4.0097,224.4,224.31,7.31]
[1757549622212,10.55915774,224.39,224.31,7.31]
[1757549622413,5.77,224.37,224.31,7.31]
[1757549622613,6.81426713,224.36,224.3,0.05077907]
[1757549622820,5.77,224.34,224.3,0.05077907]
[1757549623010,5.77,224.34,224.31,7.31]
[1757549623308,5.77,224.34,224.3,0.05077907]
[1757549623514,5.77,224.34,224.31,7.31]
[1757549624411,5.77,224.4,224.32,7.31]
[1757549624612,6.81436992,224.39,224.32,7.31]
[1757549624917,3.15518638,224.38,224.32,7.31]
[1757549625118,5.77,224.4,224.32,7.31]
[1757549625321,6.81295716,224.39,224.32,7.31]
[1757549625514,5.77,224.4,224.33,4.0109]
[1757549625716,6.81237896,224.39,224.33,4.0109]
[1757549625912,5.77,224.4,224.33,4.0109]
[1757549626112,6.81237896,224.39,224.34,7.31]
[1757549626313,5.77,224.41,224.34,7.31]
[1757549626519,6.81131575,224.4,224.34,7.31]
[1757549626720,12.58131575,224.39,224.34,7.31]
[1757549627013,5.77,224.41,224.34,7.31]
[1757549627220,6.81131575,224.4,224.34,7.31]
[1757549627419,8.92377844,224.39,224.34,7.31]
[1757549627609,143.18390601,224.42,224.34,7.31]
[1757549627610,5.77,224.41,224.34,7.31]
[1757549627812,6.81041151,224.4,224.34,7.31]
[1757549628010,8.92335974,224.39,224.34,7.31]
[1757549628220,5.77,224.41,224.34,7.31]
[1757549628421,6.80975298,224.4,224.34,7.31]
[1757549628619,3.1530548,224.39,224.33,4.0109]
[1757549628918,143.18390601,224.42,224.34,7.31]
[1757549628919,5.77,224.41,224.34,7.31]
[1757549629120,6.80975298,224.4,224.34,7.31]
[1757549629423,6.80975298,224.39,224.34,7.31]
[1757549629615,5.77,224.4,224.34,7.31]
[1757549629921,6.80943256,224.39,224.34,7.31]
[1757549630121,5.77,224.41,224.34,7.31]
[1757549630324,6.80919806,224.4,224.34,7.31]
[1757549630518,6.80919806,224.39,224.34,7.31]
[1757549630824,5.77,224.41,224.34,7.31]
[1757549631018,6.80915823,224.4,224.34,7.31]
[1757549631319,6.80915823,224.39,224.34,7.31]
[1757549631515,5.77,224.41,224.34,7.31]
[1757549631719,6.80897142,224.4,224.34,7.31]
[1757549631917,6.80897142,224.39,224.33,4.0109]
[1757549632214,5.77,224.41,224.34,7.31]
[1757549632413,6.80886924,224.4,224.34,7.31]
[1757549632715,6.80886924,224.39,224.33,4.0109]
[1757549632919,5.77,224.4,224.34,7.31]
[1757549633115,6.80886924,224.39,224.33,4.0109]
[1757549633418,5.77,224.4,224.34,7.31]
[1757549633619,6.80885019,224.39,224.33,4.0109]
[1757549633819,5.77,224.4,224.34,7.31]
[1757549634012,6.8088503,224.39,224.34,7.31]
[1757549634218,5.77,224.41,224.34,7.31]
[1757549634515,6.80891369,224.4,224.34,7.31]
[1757549634715,3.1526661,224.39,224.34,7.31]
[1757549634919,5.77,224.41,224.34,7.31]
[1757549635118,3.15233167,224.4,224.34,7.31]
[1757549635323,5.77,224.41,224.34,7.31]
[1757549637726,143.18390601,224.42,224.34,7.31]
[1757549637928,5.79,224.4,224.34,7.31]
[1757549638425,147.19320601,224.42,224.34,7.31]
[1757549638625,147.19320601,224.42,224.3,0.05077907]
[1757549638626,5.79,224.4,224.31,115.84]
[1757549638929,147.19320601,224.42,224.31,115.84]
[1757549638930,8.94171566,224.39,224.32,7.34]
[1757549639130,5.79,224.39,224.32,7.34]
[1757549641730,5.79,224.39,224.33,7.34]
[1757549642530,5.79,224.41,224.34,4.0107]
[1757549642933,5.79,224.39,224.34,11.3507]
[1757549643131,5.79,224.41,224.34,11.3507]
[1757549643331,8.94182843,224.4,224.34,11.3507]
[1757549643632,5.79,224.4,224.34,11.3507]
[1757549644634,5.79,224.4,224.34,7.34]
[1757549652837,143.18390601,224.42,224.34,7.34]
[1757549653142,148.97390601,224.42,224.34,7.34]
[1757549655036,8.94027706,224.41,224.31,7.34]
[1757549655243,6.79160644,224.4,224.31,7.34]
[1757549655445,5.79,224.38,224.31,7.34]
[1757549655742,252.3997652,224.42,224.31,7.34]
[1757549656043,6.79272042,224.41,224.31,7.34]
[1757549656244,6.79272042,224.4,224.31,7.34]
[1757549656444,5.79,224.38,224.31,7.34]
[1757549656645,252.3997652,224.42,224.31,7.34]
[1757549656843,5.79,224.4,224.31,7.34]
[1757549657140,6.79298104,224.39,224.31,7.34]
[1757549657442,5.79,224.37,224.31,7.34]
[1757549665051,5.79,224.41,224.3,0.05077907]
[1757549665253,10.37856381,224.4,224.3,0.05077907]
[1757549665448,12.58679076,224.39,224.3,0.05077907]
[1757549665752,5.79,224.37,224.3,0.05077907]
[1757549665952,5.79,224.35,224.3,0.05077907]
[1757549666152,252.3997652,224.42,224.3,0.05077907]
[1757549666153,5.79,224.41,224.3,0.05077907]
[1757549666349,5.79,224.39,224.3,0.05077907]
[1757549666653,5.79,224.37,224.3,0.05077907]
[1757549666848,6.79775962,224.36,224.3,0.05077907]
[1757549667049,6.79775962,224.35,224.3,0.05077907]
[1757549667252,5.00716992,224.41,224.3,0.05077907]
[1757549667253,5.78,224.33,224.3,0.05077907]
[1757549667448,5.78,224.4,224.3,0.05077907]
[1757549667647,5.78,224.38,224.3,0.05077907]
[1757549667849,5.78,224.36,224.3,0.05077907]
[1757549668054,5.78,224.34,224.3,0.05077907]
[1757549668242,5.78,224.32,224.3,0.05077907]
[1757549668446,5.78,224.4,224.3,0.05077907]
[1757549668755,5.78,224.38,224.3,0.05077907]
[1757549669051,5.78,224.36,224.3,0.05077907]
[1757549669248,6.79601266,224.35,224.3,0.05077907]
[1757549669448,5.78,224.33,224.3,0.05077907]
[1757549669648,5.78,224.41,224.3,0.05077907]
[1757549669847,5.78,224.39,224.3,0.05077907]
[1757549670049,5.78,224.37,224.3,0.05077907]
[1757549670352,5.78,224.35,224.3,0.05077907]
[1757549670554,5.78,224.33,224.3,0.05077907]
[1757549670753,5.78,224.41,224.3,0.05077907]
[1757549671053,5.78,224.39,224.3,0.05077907]
[1757549671350,5.78,224.37,224.3,0.05077907]
[1757549671652,5.78,224.35,224.3,0.05077907]
[1757549671851,257.40693512,224.42,224.3,0.05077907]
[1757549671852,3.15228608,224.34,224.3,0.05077907]
[1757549672052,5.78,224.41,224.3,0.05077907]
[1757549672353,5.78,224.39,224.3,0.05077907]
[1757549672552,5.78,224.37,224.3,0.05077907]
[1757549672852,5.78,224.35,224.3,0.05077907]
[1757549673052,5.78,224.33,224.3,0.05077907]
[1757549673253,5.78,224.35,224.3,0.05077907]
[1757549673458,5.78,224.33,224.3,0.05077907]
[1757549674355,5.78,224.31,224.3,0.05077907]
[1757549699272,8.93299675,224.31,224.3,0.05077907]
[1757549700074,5.78,224.31,224.3,0.05077907]
[1757549705272,8.93584574,224.31,224.3,0.05077907]
[1757549706777,0.77607547,224.36,224.3,8.01077907]
[1757549706975,143.18390601,224.42,224.3,8.01077907]
[1757549706976,5.77,224.4,224.33,7.52]
[1757549707273,6.801273,224.39,224.33,7.52]
[1757549707581,6.801273,224.38,224.33,7.52]
[1757549707782,3.15531641,224.37,224.32,2.55839739]
[1757549708076,3.15531641,224.36,224.33,7.52]
[1757549708280,5.77,224.4,224.33,7.52]
[1757549708482,6.7450162,224.39,224.33,7.52]
[1757549708676,6.7450162,224.38,224.32,2.55839739]
[1757549708884,3.14287914,224.37,224.32,2.55839739]
[1757549709082,5.77,224.4,224.33,7.52]
[1757549709277,6.74332032,224.39,224.33,7.52]
[1757549709475,6.74332032,224.38,224.32,2.55839739]
[1757549709679,3.14208945,224.37,224.33,7.52]
[1757549709881,5.77,224.4,224.33,7.52]
[1757549710186,6.74469293,224.39,224.33,7.52]
[1757549710379,3.14272789,224.38,224.33,7.52]
[1757549710683,3.14272789,224.37,224.33,7.52]
[1757549710880,5.77,224.4,224.33,7.52]
[1757549711086,6.74420652,224.39,224.33,7.52]
[1757549711287,6.74420652,224.39,224.32,2.55839739]
[1757549711288,5.77,224.37,224.3,7.57077907]
[1757549711487,6.74420652,224.36,224.3,7.57077907]
[1757549711691,8.91250265,224.35,224.31,7.52]
[1757549711981,5.77,224.35,224.3,0.05077907]
[1757549712290,5.77,224.35,224.31,7.52]
[1757549713582,5.77,224.35,224.3,0.05077907]
[1757549713787,5.77,224.35,224.31,7.52]
[1757549713982,5.77,224.35,224.3,0.05077907]
[1757549714892,5.77,224.35,224.31,7.52]
[1757549715387,5.77,224.35,224.3,0.05077907]
[1757549715782,5.77,224.35,224.31,7.52]
[1757549715986,5.77,224.35,224.3,0.05077907]
[1757549716190,5.77,224.35,224.31,7.52]
[1757549716584,5.77,224.35,224.3,0.05077907]
[1757549716985,5.77,224.35,224.31,7.52]
[1757549717289,5.77,224.35,224.3,0.05077907]
[1757549717490,5.77,224.35,224.31,7.52]
[1757549718085,143.95975655,224.42,224.31,7.52]
[1757549718284,5.77,224.4,224.31,7.52]
[1757549718483,6.74187941,224.39,224.31,7.52]
[1757549718787,5.77,224.37,224.31,7.52]
[1757549718985,3.14141562,224.36,224.3,0.05077907]
[1757549719295,8.91141562,224.35,224.31,7.52]
[1757549719594,5.77,224.35,224.3,0.05077907]
[1757549719897,5.77,224.35,224.31,7.52]
[1757549720593,5.77,224.35,224.3,0.05077907]
[1757549722401,5.77,224.35,224.31,7.52]
[1757549722698,5.77,224.35,224.3,0.05077907]
[1757549723596,5.77,224.35,224.31,7.52]
[1757549723798,5.77,224.35,224.3,0.05077907]
[1757549723988,5.77,224.35,224.31,7.52]
[1757549724192,5.77,224.35,224.3,0.05077907]
[1757549724399,5.77,224.35,224.31,7.52]
[1757549724601,5.77,224.35,224.3,0.05077907]
[1757549724898,5.77,224.41,224.33,7.52]
[1757549725099,3.14069125,224.4,224.33,7.52]
[1757549725299,5.77,224.41,224.33,7.52]
[1757549725499,3.13942984,224.4,224.33,7.52]
[1757549725694,5.77,224.41,224.35,2.55839739]
[1757549726096,5.77,224.45,224.36,7.52]
[1757549726297,5.77,224.43,224.36,7.52]
[1757549726498,5.77,224.41,224.36,7.52]
[1757549726899,5.77,224.41,224.36,7.4]
[1757549727103,5.78,224.45,224.35,9.95839739]
[1757549727300,5.78,224.43,224.35,9.95839739]
[1757549727502,5.78,224.41,224.35,9.95839739]
[1757549728099,5.78,224.41,224.35,2.55839739]
[1757549728307,5.78,224.45,224.38,2.55839739]
[1757549728604,5.78,224.49,224.42,7.4]
[1757549728795,6.73131519,224.48,224.42,7.4]
[1757549728995,3.13647328,224.47,224.41,2.55839739]
[1757549729192,5.78,224.49,224.42,7.4]
[1757549729402,3.13102849,224.48,224.42,7.4]
[1757549729601,5.78,224.49,224.42,7.4]
[1757549729902,3.13102805,224.48,224.42,7.4]
[1757549730100,5.78,224.49,224.42,7.4]
[1757549730300,3.12946244,224.48,224.42,7.4]
[1757549730500,5.78,224.49,224.42,7.4]
[1757549730701,3.12940318,224.48,224.42,7.4]
[1757549730901,5.78,224.49,224.42,7.4]
[1757549731102,3.12940276,224.48,224.42,7.4]
[1757549731303,5.78,224.49,224.42,7.4]
[1757549738905,5.78,224.53,224.45,7.4]
[1757549739112,5.78,224.52,224.45,7.4]
[1757549740116,5.78,224.56,224.47,2.55839739]
[1757549740322,5.78,224.54,224.47,2.55839739]
[1757549740521,3.12040149,224.53,224.47,2.55839739]
[1757549740821,5.78,224.54,224.47,2.55839739]
[1757549741023,3.12040107,224.53,224.47,2.55839739]
[1757549741217,5.78,224.56,224.47,2.55839739]
[1757549741419,5.78,224.54,224.47,2.55839739]
[1757549741621,3.12007242,224.53,224.47,2.55839739]
[1757549741928,5.78,224.56,224.47,2.55839739]
[1757549742119,5.78,224.54,224.47,2.55839739]
[1757549742321,6.69615869,224.53,224.45,7.4]
[1757549742626,5.78,224.51,224.45,7.4]
[1757549742923,5.78,224.56,224.43,2.55839739]
[1757549743117,5.78,224.54,224.43,2.55839739]
[1757549743313,5.78,224.52,224.43,2.55839739]
[1757549743518,3.12013402,224.51,224.37,2.55839739]
[1757549743723,2.55839739,224.55,224.37,2.55839739]
[1757549743724,5.78,224.49,224.38,7.4]
[1757549744020,24.6,224.52,224.38,7.4]
[1757549744224,5.78,224.5,224.38,7.4]
[1757549744421,5.78,224.48,224.38,7.4]
[1757549744624,5.78,224.48,224.41,7.4]
[1757549745024,5.78,224.51,224.44,7.4]
[1757549749021,5.78,224.56,224.46,2.55839739]
[1757549749227,5.78,224.54,224.47,7.4]
[1757549749418,3.12153828,224.53,224.47,7.4]
[1757549749620,5.78,224.54,224.47,7.4]
[1757549749822,3.12153568,224.53,224.47,7.4]
[1757549750127,5.78,224.54,224.47,7.4]
[1757549750323,3.12192174,224.53,224.47,7.4]
[1757549750621,5.78,224.54,224.47,7.4]
[1757549750827,3.12192174,224.53,224.47,7.4]